{"text_format":"1","workbook":"xlsx","n_sheets":10,"sheets":["POČETNA","1. SAŽETAK INDIKATORA","2.PRIKUPLJEN OTPAD","3. GENERISAN  OTPAD","4. MORFOLOGIJA OTPADA","5. ODLAGANJE NA DEPONIJE","6. PONOVNA UPOTR. I RECIKLAZA","7. TROŠKOVI PRIKUPLJ. I TRANSP.","8. FINANSIRANJE INVESTICIJA","9. NARATIVNI DEO"],"not_rendered":{"charts":9,"images":0,"macros":1,"external_links":0,"defined_names":9,"comments":6,"pivot_tables":0},"unopened":[],"bounds":{"document_bytes":16777216,"sheet_cells":100000,"rows_first":2000,"rows_last":500,"rows_between":2000,"halvings":0,"cell_chars":16384,"cell_head_chars":4096},"cells_cut":0,"cells_raw":0,"read":"whole","date_system":"1900"}

{"sheet":"POČETNA","index":0,"n_rows":49,"n_cols":7,"rows_kept":49,"cut":false,"hidden":false,"merged":[[0,0,2,10],[14,6,14,9],[17,6,17,9],[7,5,14,5],[7,6,7,9],[8,6,8,9],[9,6,9,9],[10,6,10,9],[11,6,11,9],[12,6,12,9],[13,6,13,9]]}
["Važna napomena: Da bi SWIS model radio ispravno neophodno je pre unosa podataka aktivirati makroe (Macros)\nVažna napomena: Pri snimanju dokumenta koristiti opciju “Excel Macro-Enabled Workbook”"]
[]
[]
[]
[]
[]
[]
[null,null,null,null,null,"UNOS PODATAKA","2. PRIKUPLJEN OTPAD"]
[null,null,null,null,null,null,"3. GENERISAN  OTPAD"]
[null,null,null,null,null,null,"4. MORFOLOGIJA OTPADA"]
[null,null,null,null,null,null,"5. ODLAGANJE NA DEPONIJE"]
[null,null,null,null,null,null,"6. PONOVNA UPOTREBA I RECIKLAŽA "]
[null,null,null,null,null,null,"7. TROŠKOVI PRIKUPLJANJA I TRANSPORTA OTPADA "]
[null,null,null,null,null,null,"8. FINANSIRANJE INVESTICIJA"]
[null,null,null,null,null,null,"9. NARATIVE INFOMACIJE O ČVRSTOM OTPADU"]
[]
[]
[null,null,null,null,null,"REZULTAT","1. SAŽETAK INDIKATORA"]
[]
[]
[]
[]
[]
[]
[]
[]
[]
[]
[]
[]
[]
[]
[]
[]
[]
[]
[]
[]
[]
[]
[]
[]
[]
[]
[]
[]
[]
[]
[null,null,null,null,null,null,"Milisav Aleksic, freelance consultant, Belgrade, Serbia, milisav.aleksic@gmai.com "]

{"sheet":"1. SAŽETAK INDIKATORA","index":1,"n_rows":63,"n_cols":6,"rows_kept":63,"cut":false,"hidden":false,"merged":[]}
[null,"Podatci za godinu",{"$f":"'2.PRIKUPLJEN OTPAD'!E1","v":0}]
[null,{"$f":"'2.PRIKUPLJEN OTPAD'!B2:F2","v":"Primer opštine XXX"}]
[null,"Površina u km2",{"$f":"IFERROR('2.PRIKUPLJEN OTPAD'!C3,\"\")","v":0}]
[null,"Ukupno stanovnika ",{"$f":"IFERROR('2.PRIKUPLJEN OTPAD'!C4,\"\")","v":0}]
[null,"Ukupno domaćinstava",{"$f":"IFERROR('2.PRIKUPLJEN OTPAD'!C5,\"\")","v":0}]
[null,"SAŽETAK INDIKATORA UPRAVLJANJA KOMUNALNIM OTPADOM ",null,"Opseg indikatora","od","do"]
["I","PRIKUPLJANJE I TRANSPORT  KOMUNALNOG OTPADA "]
[1,{"$f":"'7. TROŠKOVI PRIKUPLJ. I TRANSP.'!G5","v":"Ukupan broj opsluženih domaćinstava"},{"$f":"IFERROR('7. TROŠKOVI PRIKUPLJ. I TRANSP.'!I5,\"\")","v":""},"> 70%",0.7,1]
[2,"Pokrivenost uslugom u urbanim područjima ",{"$f":"IFERROR('7. TROŠKOVI PRIKUPLJ. I TRANSP.'!I6,\"\")","v":""},"> 90%",0.9,1]
[3,"Pokrivenost uslugom u ruralnim područjima ",{"$f":"IFERROR('7. TROŠKOVI PRIKUPLJ. I TRANSP.'!I7,\"\")","v":""},"> 60%",0.6,1]
[4,"PROSEČNA količina prikupljenog otpad domaćinstvo/kg/dan",{"$f":"IFERROR('2.PRIKUPLJEN OTPAD'!J10,\"\")","v":""},"1,05 - 3,6kg",1.05,3.5999999999999996]
[5,{"$f":"'3. GENERISAN  OTPAD'!B6","v":"Porosečno generisanje otpada stanovnik/kg/dan"},{"$f":"IFERROR('3. GENERISAN  OTPAD'!C6,\"\")","v":""},"0,35 - 1,2kg",0.35,1.2]
[6,{"$f":"'7. TROŠKOVI PRIKUPLJ. I TRANSP.'!B22","v":"Količina godišnje sakupljenog otpada po zaposlenom koji radi na sakupljanju i transportu otpada u tonama "},{"$f":"IFERROR('7. TROŠKOVI PRIKUPLJ. I TRANSP.'!C22,\"\")","v":""},"> 650 ton/Empl.",650,1600]
[7,{"$f":"'7. TROŠKOVI PRIKUPLJ. I TRANSP.'!B23","v":"Broj stanovnika pokrivenih uslugom po zaposlenom koji radi na sakupljanju i transportu otpada "},{"$f":"IFERROR('7. TROŠKOVI PRIKUPLJ. I TRANSP.'!C23,\"\")","v":""},"> 1300 PE / Empl.",1300,7000]
[8,{"$f":"'7. TROŠKOVI PRIKUPLJ. I TRANSP.'!B24","v":"Broj zaposlenih na koji radi na sakupljanju i transportu otpada na 1000 stanovnika pokrivenih uslugom  "},{"$f":"IFERROR('7. TROŠKOVI PRIKUPLJ. I TRANSP.'!C24:D24,\"\")","v":""},"1 - 2 Empl/1000 PE",1,2]
[9,{"$f":"'7. TROŠKOVI PRIKUPLJ. I TRANSP.'!B21","v":"Odnos zaposlenih, administrativni u odnosu na operativne kadrove 1:"},{"$f":"IFERROR('7. TROŠKOVI PRIKUPLJ. I TRANSP.'!C21:D21,\"\")","v":""},null,14,25]
[10,{"$f":"'9. NARATIVNI DEO'!C55","v":"Ukupni kapaciteti opreme u m3"},{"$f":"'9. NARATIVNI DEO'!H55","v":0},null,{"$f":"C18","v":""},{"$f":"C19","v":""}]
[11,"Traženi obim usluge u m³ sa trenutnom stopom prikupljanja ",{"$f":"IFERROR(('2.PRIKUPLJEN OTPAD'!C10*'2.PRIKUPLJEN OTPAD'!J10)/'2.PRIKUPLJEN OTPAD'!G10/1000,\"\")","v":""}]
[12,"Traženi obim usluge u m³ sa stopom prikupljanja od 100% ",{"$f":"IFERROR(('2.PRIKUPLJEN OTPAD'!C5*'2.PRIKUPLJEN OTPAD'!J10)/'2.PRIKUPLJEN OTPAD'!G10/1000,\"\")","v":""}]
[13,"Odnos raspolpživog kapaciteta i potreba prema trenutnoj stopi prikupljanja ",{"$f":"IFERROR(C18/C17,\"\")","v":""},{"$f":"1:1","v":0},1,1]
[14,"Odnos između pružene i tražene usluge prema stopi prikupljanja od 100% ",{"$f":"IFERROR(C19/C17,\"\")","v":""},null,1,1]
["II","KOLIČINA KOMUNALNOG OTPADA "]
[15,{"$f":"'3. GENERISAN  OTPAD'!L9","v":"Procenjeni ukupni proizvedeni otpad u tonama/godišnje"},{"$f":"IFERROR('3. GENERISAN  OTPAD'!L21,\"\")","v":0}]
[16,{"$f":"'2.PRIKUPLJEN OTPAD'!H9","v":"Količina prikupljenog otpada godišnje u tonama"},{"$f":"'2.PRIKUPLJEN OTPAD'!H21","v":0}]
[17,"Odnos između otpada prikupljenog u urbanim i ruralnim područjima",{"$f":"IFERROR('7. TROŠKOVI PRIKUPLJ. I TRANSP.'!H6/'7. TROŠKOVI PRIKUPLJ. I TRANSP.'!H7,\"\")","v":""}]
[18,{"$f":"'3. GENERISAN  OTPAD'!M9","v":"Procenjeno nekontrolisano odlaganje otpada u tonama/godišnje"},{"$f":"IFERROR('3. GENERISAN  OTPAD'!M21,\"\")","v":0}]
[19,"Nekontrolisano odlaganje otpada u % ukupnog proizvedenog otpada",{"$f":"IFERROR('3. GENERISAN  OTPAD'!N21,\"\")","v":""}]
[20,"Nekontrolisano odlaganje otpada u % ukupnog prikupljenog otpada ",{"$f":"'3. GENERISAN  OTPAD'!O21","v":0}]
["III","ODLAGANJE KOMUNALNOG OTPADA NA DEPONIJE BEZ SEPARACIJE "]
[21,"Odlaganje komunalnog otpada bez separacije na tradicionalne deponije u %",{"$f":"IFERROR('5. ODLAGANJE NA DEPONIJE'!F24,\"\")","v":""},null,0,0]
[22,"Odlaganje komunalnog otpada bez separacije na kontrolisane deponije u %",{"$f":"IFERROR('5. ODLAGANJE NA DEPONIJE'!H24,\"\")","v":""},null,1,1]
[23,"Spaljeni komunalni otpad bez separacije u % ",{"$f":"IFERROR('5. ODLAGANJE NA DEPONIJE'!J24,\"\")","v":""},null,0,1]
["IV","ODLAGANJE KOMUNALNOG OTPADA NAKON SEPARACIJE "]
[24,"Odložen na deponije nakon separacije u % prikupljenog ",{"$f":"IFERROR('6. PONOVNA UPOTR. I RECIKLAZA'!M24,\"\")","v":""},"65% - 35%",0.65,0.35]
[25,"Prosečna količina odloženog otpada iz domaćinstava po glavi/kg/dnevno",{"$f":"IFERROR(C12*C34,\"\")","v":""},"0,23 - 0,42kg/PE*day",{"$f":"E11*E34","v":0.68250000000000011},{"$f":"F11*F34","v":1.2599999999999998}]
[26,"Separirano u % od ukupne prikupljene količine",{"$f":"IFERROR('6. PONOVNA UPOTR. I RECIKLAZA'!F24+'6. PONOVNA UPOTR. I RECIKLAZA'!H24,\"\")","v":""},"35% - 65%",{"$f":"100%-E34","v":0.35},{"$f":"100%-F34","v":0.65}]
[27,"Prosečna količina separiranog otpada iz domaćinstava po glavi/kg/dnevno ",{"$f":"IFERROR(C12*C36,\"\")","v":""},"0,12 - 0,78kg/PE*day",{"$f":"E36*E11","v":0.36749999999999999},{"$f":"F36*F11","v":2.34}]
["V","POVRAĆAJ KOMUNALNOG OTPADA NAKON SEPARACIJE "]
[28,"% ukupnog separiranog otpada koji se reciklira i vraća na tržište, uključujući zalihe",{"$f":"IFERROR('6. PONOVNA UPOTR. I RECIKLAZA'!R24,\"\")","v":""},"0% - 80%",0,0.8]
[29,"% ukupnog separiranog otpada koji se spaljuje uz povraćaj energije ",{"$f":"IFERROR('6. PONOVNA UPOTR. I RECIKLAZA'!T24,\"\")","v":""},"0% - 40%",0,0.4]
[30,"% ukupnog separiranog otpada koji se kompostira",{"$f":"IFERROR('6. PONOVNA UPOTR. I RECIKLAZA'!V24,\"\")","v":""},"0% - 65%",0,0.65]
["VI","ISKORIŠĆENOST KAPACITETA DEPONIJE"]
[31,{"$f":"'6. PONOVNA UPOTR. I RECIKLAZA'!B30","v":"Trenutni kapacitet deponije koji se koristi"},{"$f":"'6. PONOVNA UPOTR. I RECIKLAZA'!D30","v":0},"0 - 100%",0,1]
[32,{"$f":"'6. PONOVNA UPOTR. I RECIKLAZA'!B33","v":"Životni vek deponije- preostale godine po trenutnoj stopi odlaganja bez separacije ili spaljivanja  "},{"$f":"IFERROR('6. PONOVNA UPOTR. I RECIKLAZA'!D33,\"\")","v":""},"5 - 10 years",5,10]
[33,{"$f":"'6. PONOVNA UPOTR. I RECIKLAZA'!B32","v":"Životni vek deponije- preostale godine posle separacije, reciklaže i ponovnog iskorišćenja "},{"$f":"IFERROR('6. PONOVNA UPOTR. I RECIKLAZA'!D32,\"\")","v":""},"> 30 years",5,30]
[34,{"$f":"'6. PONOVNA UPOTR. I RECIKLAZA'!B27","v":"Prosečni odloženi otpad u tonama na dan pre separacije "},{"$f":"IFERROR('6. PONOVNA UPOTR. I RECIKLAZA'!D27,\"\")","v":""}]
[35,{"$f":"'6. PONOVNA UPOTR. I RECIKLAZA'!B28","v":"Prosečni odloženi otpad u tonama na dan posle separacije "},{"$f":"IFERROR('6. PONOVNA UPOTR. I RECIKLAZA'!D28,\"\")","v":""}]
["VII","TRENUTNI TROŠKOVI, PLANIRANA ULAGANJA I PROCENJENI RASHODI U RSD"]
[null,"Po RSD/toni"]
[36,{"$f":"'7. TROŠKOVI PRIKUPLJ. I TRANSP.'!B25","v":"Trenutni troškovi za sakupljanje i transport otpada RSD/toni"},{"$f":"IFERROR('7. TROŠKOVI PRIKUPLJ. I TRANSP.'!C25,\"\")","v":""},null,10,45]
[37,{"$f":"'8. FINANSIRANJE INVESTICIJA'!B68","v":"Procenjeno povećanje troškova za sakupljanje i transport po toni u RSD"},{"$f":"IFERROR('8. FINANSIRANJE INVESTICIJA'!C68,\"\")","v":""}]
[38,{"$f":"'8. FINANSIRANJE INVESTICIJA'!B67","v":"Procenjeni troškovi sakupljanja i transporta uključujući povećanje za investicije i opremu u RSD/toni"},{"$f":"IFERROR('8. FINANSIRANJE INVESTICIJA'!C67,\"\")","v":""}]
[39,{"$f":"'8. FINANSIRANJE INVESTICIJA'!E67","v":"Procenjeno povećanje rashoda za investicije u reciklažu, ponovno iskorišćenje i  odlaganja na deponiju sakupljenih količina u RSD/toni"},{"$f":"IFERROR('8. FINANSIRANJE INVESTICIJA'!F67,\"\")","v":""}]
[40,{"$f":"'8. FINANSIRANJE INVESTICIJA'!E68","v":"Procenjeni ukupni troškovi upravljanja otpadom (sakupljanje, transport, tretman i odlaganje na deponiju) sa povećanjem za investicije u RSD/toni"},{"$f":"IFERROR('8. FINANSIRANJE INVESTICIJA'!F68,\"\")","v":""},null,60,120]
[null,"Po domaćinstvu "]
[41,"Trenutni troškovi prikupljanja i prevoza po domaćinstvu/godišnje u RSD",{"$f":"IFERROR('2.PRIKUPLJEN OTPAD'!J10*365/1000*C50,\"\")","v":""}]
[42,"Procenjeno povećanje u troškovima prikupljanja i prevoza po domaćinstvu/godišnje u RSD",{"$f":"IFERROR(C58-C56,\"\")","v":""}]
[43,"Procenjeni troškovi prikupljanja i prevoza po domaćinstvu/godišnje u RSD",{"$f":"IFERROR('2.PRIKUPLJEN OTPAD'!J10*365/1000*'8. FINANSIRANJE INVESTICIJA'!C67,\"\")","v":""}]
[44,"Procenjeno povećanje troškova ulaganja u reciklažu, povraćaj i deponovanje prikupljene količine po domaćinstvu/godišnje u RSD",{"$f":"IFERROR('2.PRIKUPLJEN OTPAD'!J10*365/1000*'8. FINANSIRANJE INVESTICIJA'!F67,\"\")","v":""}]
[45,"Procenjeni ukupni troškovi upravljanja komunalnim otpadom (prikupljanje, prevoz, obrada i deponovanje) sa uvećanjem za ulaganja po domaćinstvu/godišnje u RSD",{"$f":"IFERROR('2.PRIKUPLJEN OTPAD'!J10*365/1000*C54,\"\")","v":""}]
[]
[]
[null,"POČETNA"]

{"sheet":"2.PRIKUPLJEN OTPAD","index":2,"n_rows":22,"n_cols":10,"rows_kept":22,"cut":false,"hidden":false,"merged":[[0,4,0,5],[1,1,1,5],[0,2,0,3],[21,1,23,2],[21,3,40,9],[6,2,6,9]]}
[null,"OPŠTINA","Podaci za period - GODINA"]
[null,"Primer opštine XXX"]
[null,"Površina u km2"]
[null,"Ukupan broj stanovnika"]
[null,"Ukupan broj domaćinstva"]
[null,"Prosečan broj članova domaćinstva",{"$f":"C4/C5","v":{"$error":"#DIV/0!"}}]
[null,null,"Ukupan prikupljeni komunalni otpad po proizvođaču otpada"]
[null,null,1,2,2.1,3,4,5,null,6]
[null,"POREKLO OTPADA PO VRSTI","Ukupan broj opsluživanih proizvođača otpada","Količina sakupljenog otpada godišnje u odabranim jedinicama (kolona 2.1)","Izabrana jedinica mere","Sakupljene količine kao % ukupne vrednosti","Količina sakupljenog otpada na godišnjem nivou u tonama","Količina prikupljenog otpada godišnje u tonama",null,"Prosečna količina prikupljenog otpada tip/kg/dan"]
[1,"Mešoviti otpad iz domaćinstava",null,null,null,{"$f":"I10/$H$21","v":{"$error":"#DIV/0!"}},null,{"$f":"IF(C10=0,D10=0,IF(D10=0,C10=0,D10*G10))","v":true},{"$f":"IFERROR(VALUE(H10),0)","v":0},{"$f":"((H10/C10)/365)*1000","v":{"$error":"#DIV/0!"}}]
[2,"Komunalni otpad sa javnih površina",null,null,null,{"$error":"#DIV/0!"},null,{"$f":"IF(C11=0,D11=0,IF(D11=0,C11=0,D11*G11))","v":true},0,{"$f":"((H11/C11)/365)*1000","v":{"$error":"#DIV/0!"}}]
[3,"Kabasti komunalni otpad",null,null,null,{"$error":"#DIV/0!"},null,true,0,{"$error":"#DIV/0!"}]
[4,"Privredni subjekti",null,null,null,{"$error":"#DIV/0!"},null,true,0,{"$error":"#DIV/0!"}]
[5,"Ustanove (opštinske i ostale)",null,null,null,{"$error":"#DIV/0!"},null,true,0,{"$error":"#DIV/0!"}]
[6,"Industrijski neopasni otpad",null,null,null,{"$error":"#DIV/0!"},null,true,0,{"$error":"#DIV/0!"}]
[7,"Građevinski otpad",null,null,null,{"$error":"#DIV/0!"},null,true,0,{"$error":"#DIV/0!"}]
[8,"Poljoprivredni organski otpad",null,null,null,{"$error":"#DIV/0!"},null,true,0,{"$error":"#DIV/0!"}]
[9,"Ostalo",null,null,null,{"$error":"#DIV/0!"},null,true,0,{"$error":"#DIV/0!"}]
[10,"Ostalo",null,null,null,{"$error":"#DIV/0!"},null,true,0,{"$error":"#DIV/0!"}]
[11,"Ostalo",null,null,null,{"$error":"#DIV/0!"},null,true,0,{"$error":"#DIV/0!"}]
[null,"UKUPNO",null,{"$f":"SUM(D10:D20)","v":0},null,{"$f":"SUM(F10:F20)","v":{"$error":"#DIV/0!"}},null,{"$f":"SUM(H10:H20)","v":0}]
[null,"POČETNA",null,"Beleške: "]

{"sheet":"3. GENERISAN  OTPAD","index":3,"n_rows":23,"n_cols":14,"rows_kept":23,"cut":false,"hidden":false,"merged":[[22,1,24,2],[22,3,42,14],[0,4,0,5],[0,7,0,8],[1,1,1,8],[0,2,0,3],[6,2,6,14]]}
[null,{"$f":"'2.PRIKUPLJEN OTPAD'!B1","v":"OPŠTINA"},{"$f":"'2.PRIKUPLJEN OTPAD'!C1","v":"Podaci za period - GODINA"},null,{"$f":"'2.PRIKUPLJEN OTPAD'!E1:F1","v":0},null,null,{"$f":"'2.PRIKUPLJEN OTPAD'!E1","v":0}]
[null,{"$f":"'2.PRIKUPLJEN OTPAD'!B2","v":"Primer opštine XXX"}]
[null,"Ukupan broj stanovnika",{"$f":"'2.PRIKUPLJEN OTPAD'!C4","v":0}]
[null,"Ukupan broj domaćinstva",{"$f":"'2.PRIKUPLJEN OTPAD'!C5","v":0}]
[null,"Prosečan broj članova domaćinstva",{"$f":"C3/C4","v":{"$error":"#DIV/0!"}}]
[null,"Porosečno generisanje otpada stanovnik/kg/dan",{"$f":"(L21/C3/365*1000)","v":{"$error":"#DIV/0!"}}]
[null,null,"UKUPAN KOMUNALNI OTPAD PROIZVEDEN OD STRANE SVIH IZVORA PROIZVODNJE OTPADA "]
[null,null,1,2,null,null,2,3,4,5,6,7,8,9]
[null,"POREKLO OTPADA PREMA VRSTI","Ukupan broj opsluživanih proizvođača otpada","Ukupan broj postojećih proizvođača otpada uključujući opsluživane ","Quantity of waste collected annually in m3","% of Total Collected","Average waste density conversion factor","Razlika između broja potojećih i opsluživanih proizvođača otpada ","Količina otpada koji se sakuplja na godišnjem nivou u tonama","Procenjena pokrivenost uslugom u % količina","Procenjeni prosečan ukupni proizvedeni  (ne sakupljeni) otpad u tonama","Procenjeni ukupni proizvedeni otpad u tonama/godišnje","Procenjeno nekontrolisano odlaganje otpada u tonama/godišnje","Procenjeno nekontrolisano odlaganje otpada u % u odnosu na generisani otpad"]
[1,{"$f":"'2.PRIKUPLJEN OTPAD'!B10","v":"Mešoviti otpad iz domaćinstava"},{"$f":"'2.PRIKUPLJEN OTPAD'!C10","v":0},null,{"$f":"IF('2.PRIKUPLJEN OTPAD'!H10=FALSE,'2.PRIKUPLJEN OTPAD'!D10=0,'2.PRIKUPLJEN OTPAD'!D10)","v":0},{"$f":"E10/$E$21","v":{"$error":"#DIV/0!"}},{"$f":"'2.PRIKUPLJEN OTPAD'!G10","v":0},{"$f":"D10-C10","v":0},{"$f":"E10*G10","v":0},{"$f":"C10/D10","v":{"$error":"#DIV/0!"}},{"$f":"IFERROR((I10*(1-J10))/J10,0)","v":0},{"$f":"IFERROR(IF(J10=0,K10,I10/J10),0)","v":0},{"$f":"L10-I10","v":0},{"$f":"M10/L10","v":{"$error":"#DIV/0!"}}]
[2,{"$f":"'2.PRIKUPLJEN OTPAD'!B11","v":"Komunalni otpad sa javnih površina"},{"$f":"'2.PRIKUPLJEN OTPAD'!C11","v":0},null,{"$f":"IF('2.PRIKUPLJEN OTPAD'!H11=FALSE,'2.PRIKUPLJEN OTPAD'!D11=0,'2.PRIKUPLJEN OTPAD'!D11)","v":0},{"$error":"#DIV/0!"},{"$f":"'2.PRIKUPLJEN OTPAD'!G11","v":0},{"$f":"D11-C11","v":0},0,{"$f":"C11/D11","v":{"$error":"#DIV/0!"}},0,{"$f":"IFERROR(IF(J11=0,K11,I11/J11),0)","v":0},{"$f":"L11-I11","v":0},{"$error":"#DIV/0!"}]
[3,{"$f":"'2.PRIKUPLJEN OTPAD'!B12","v":"Kabasti komunalni otpad"},{"$f":"'2.PRIKUPLJEN OTPAD'!C12","v":0},null,{"$f":"IF('2.PRIKUPLJEN OTPAD'!H12=FALSE,'2.PRIKUPLJEN OTPAD'!D12=0,'2.PRIKUPLJEN OTPAD'!D12)","v":0},{"$error":"#DIV/0!"},{"$f":"'2.PRIKUPLJEN OTPAD'!G12","v":0},0,{"$f":"E12*G12","v":0},{"$error":"#DIV/0!"},0,0,0,{"$error":"#DIV/0!"}]
[4,{"$f":"'2.PRIKUPLJEN OTPAD'!B13","v":"Privredni subjekti"},{"$f":"'2.PRIKUPLJEN OTPAD'!C13","v":0},null,{"$f":"IF('2.PRIKUPLJEN OTPAD'!H13=FALSE,'2.PRIKUPLJEN OTPAD'!D13=0,'2.PRIKUPLJEN OTPAD'!D13)","v":0},{"$error":"#DIV/0!"},{"$f":"'2.PRIKUPLJEN OTPAD'!G13","v":0},0,0,{"$error":"#DIV/0!"},0,0,0,{"$error":"#DIV/0!"}]
[5,{"$f":"'2.PRIKUPLJEN OTPAD'!B14","v":"Ustanove (opštinske i ostale)"},{"$f":"'2.PRIKUPLJEN OTPAD'!C14","v":0},null,{"$f":"IF('2.PRIKUPLJEN OTPAD'!H14=FALSE,'2.PRIKUPLJEN OTPAD'!D14=0,'2.PRIKUPLJEN OTPAD'!D14)","v":0},{"$error":"#DIV/0!"},{"$f":"'2.PRIKUPLJEN OTPAD'!G14","v":0},0,0,{"$error":"#DIV/0!"},0,0,0,{"$error":"#DIV/0!"}]
[6,{"$f":"'2.PRIKUPLJEN OTPAD'!B15","v":"Industrijski neopasni otpad"},{"$f":"'2.PRIKUPLJEN OTPAD'!C15","v":0},null,{"$f":"IF('2.PRIKUPLJEN OTPAD'!H15=FALSE,'2.PRIKUPLJEN OTPAD'!D15=0,'2.PRIKUPLJEN OTPAD'!D15)","v":0},{"$error":"#DIV/0!"},{"$f":"'2.PRIKUPLJEN OTPAD'!G15","v":0},0,0,{"$error":"#DIV/0!"},0,0,0,{"$error":"#DIV/0!"}]
[7,{"$f":"'2.PRIKUPLJEN OTPAD'!B16","v":"Građevinski otpad"},{"$f":"'2.PRIKUPLJEN OTPAD'!C16","v":0},null,{"$f":"IF('2.PRIKUPLJEN OTPAD'!H16=FALSE,'2.PRIKUPLJEN OTPAD'!D16=0,'2.PRIKUPLJEN OTPAD'!D16)","v":0},{"$error":"#DIV/0!"},{"$f":"'2.PRIKUPLJEN OTPAD'!G16","v":0},0,0,{"$error":"#DIV/0!"},0,0,0,{"$error":"#DIV/0!"}]
[8,{"$f":"'2.PRIKUPLJEN OTPAD'!B17","v":"Poljoprivredni organski otpad"},{"$f":"'2.PRIKUPLJEN OTPAD'!C17","v":0},null,{"$f":"IF('2.PRIKUPLJEN OTPAD'!H17=FALSE,'2.PRIKUPLJEN OTPAD'!D17=0,'2.PRIKUPLJEN OTPAD'!D17)","v":0},{"$error":"#DIV/0!"},{"$f":"'2.PRIKUPLJEN OTPAD'!G17","v":0},0,0,{"$error":"#DIV/0!"},0,0,0,{"$error":"#DIV/0!"}]
[9,{"$f":"'2.PRIKUPLJEN OTPAD'!B18","v":"Ostalo"},{"$f":"'2.PRIKUPLJEN OTPAD'!C18","v":0},null,{"$f":"IF('2.PRIKUPLJEN OTPAD'!H18=FALSE,'2.PRIKUPLJEN OTPAD'!D18=0,'2.PRIKUPLJEN OTPAD'!D18)","v":0},{"$error":"#DIV/0!"},{"$f":"'2.PRIKUPLJEN OTPAD'!G18","v":0},0,0,{"$error":"#DIV/0!"},0,0,0,{"$error":"#DIV/0!"}]
[10,{"$f":"'2.PRIKUPLJEN OTPAD'!B19","v":"Ostalo"},{"$f":"'2.PRIKUPLJEN OTPAD'!C19","v":0},null,{"$f":"IF('2.PRIKUPLJEN OTPAD'!H19=FALSE,'2.PRIKUPLJEN OTPAD'!D19=0,'2.PRIKUPLJEN OTPAD'!D19)","v":0},{"$f":"E19/$E$21","v":{"$error":"#DIV/0!"}},{"$f":"'2.PRIKUPLJEN OTPAD'!G19","v":0},{"$f":"D19-C19","v":0},{"$f":"E19*G19","v":0},{"$f":"C19/D19","v":{"$error":"#DIV/0!"}},0,0,{"$f":"L19-I19","v":0},{"$f":"M19/L19","v":{"$error":"#DIV/0!"}}]
[11,{"$f":"'2.PRIKUPLJEN OTPAD'!B20","v":"Ostalo"},{"$f":"'2.PRIKUPLJEN OTPAD'!C20","v":0},null,{"$f":"IF('2.PRIKUPLJEN OTPAD'!H20=FALSE,'2.PRIKUPLJEN OTPAD'!D20=0,'2.PRIKUPLJEN OTPAD'!D20)","v":0},{"$error":"#DIV/0!"},{"$f":"'2.PRIKUPLJEN OTPAD'!G20","v":0},0,0,{"$error":"#DIV/0!"},0,0,0,{"$error":"#DIV/0!"}]
[null,"UKUPNO",null,null,{"$f":"SUM(E10:E20)","v":0},null,null,null,{"$f":"SUM(I10:I20)","v":0},null,{"$f":"SUM(K10:K20)","v":0},{"$f":"SUM(L10:L20)","v":0},{"$f":"SUM(M10:M20)","v":0},{"$f":"M21/L21","v":{"$error":"#DIV/0!"}}]
[]
[null,"POČETNA",null,"Beleške:  "]

{"sheet":"4. MORFOLOGIJA OTPADA","index":4,"n_rows":24,"n_cols":9,"rows_kept":24,"cut":false,"hidden":false,"merged":[[1,1,1,5],[1,7,1,11],[0,1,0,2],[23,1,25,3],[23,5,38,13]]}
[null,{"$f":"'2.PRIKUPLJEN OTPAD'!B1","v":"OPŠTINA"},null,{"$f":"'2.PRIKUPLJEN OTPAD'!C1","v":"Podaci za period - GODINA"},{"$f":"'2.PRIKUPLJEN OTPAD'!E1:F1","v":0}]
[null,{"$f":"'2.PRIKUPLJEN OTPAD'!B2","v":"Primer opštine XXX"}]
[]
[null,1,2,3,4,5]
[null,"STRUKTURA MEŠOVITOG KOMUNALNOG OTPADA","Procenjeni prosečni sadržaj","Količine sakupljenog otpada u tonama","Količine proizvedenog otpada u tonama","Količine nekontrolisano odloženog otpada u tonama",null,null,"Estimated Average Density t/m3"]
[1,"Baštenski otpad",null,{"$f":"'2.PRIKUPLJEN OTPAD'!$H$21*C6","v":0},{"$f":"'3. GENERISAN  OTPAD'!$L$21*C6","v":0},{"$f":"E6-D6","v":0},null,null,0.1]
[2,"Ostali biorazgradivi \n\notpad",null,{"$f":"'2.PRIKUPLJEN OTPAD'!$H$21*C7","v":0},{"$f":"'3. GENERISAN  OTPAD'!$L$21*C7","v":0},{"$f":"E7-D7","v":0},null,null,0.14399999999999999]
[3,"Papir",null,{"$f":"'2.PRIKUPLJEN OTPAD'!$H$21*C8","v":0},{"$f":"'3. GENERISAN  OTPAD'!$L$21*C8","v":0},0,null,null,0.33300000000000002]
[4,"Staklo",null,{"$f":"'2.PRIKUPLJEN OTPAD'!$H$21*C9","v":0},{"$f":"'3. GENERISAN  OTPAD'!$L$21*C9","v":0},0,null,null,0.64]
[5,"Karton",null,{"$f":"'2.PRIKUPLJEN OTPAD'!$H$21*C10","v":0},{"$f":"'3. GENERISAN  OTPAD'!$L$21*C10","v":0},0,null,null,0.57569999999999999]
[6,"Kompozitni materijali (karton/vosak)",null,{"$f":"'2.PRIKUPLJEN OTPAD'!$H$21*C11","v":0},{"$f":"'3. GENERISAN  OTPAD'!$L$21*C11","v":0},0,null,null,0.32]
[7,"Kompozitni materijali (karton/aluminijum)",null,{"$f":"'2.PRIKUPLJEN OTPAD'!$H$21*C12","v":0},{"$f":"'3. GENERISAN  OTPAD'!$L$21*C12","v":0},0,null,null,0.1]
[8,"Metal – ambalažni i \n\nostali",null,{"$f":"'2.PRIKUPLJEN OTPAD'!$H$21*C13","v":0},{"$f":"'3. GENERISAN  OTPAD'!$L$21*C13","v":0},0]
[9,"Metal – aluminijumske konzerve",null,{"$f":"'2.PRIKUPLJEN OTPAD'!$H$21*C14","v":0},{"$f":"'3. GENERISAN  OTPAD'!$L$21*C14","v":0},0,null,null,0.17599999999999999]
[10,"Plastični ambalažni otpad",null,{"$f":"'2.PRIKUPLJEN OTPAD'!$H$21*C15","v":0},{"$f":"'3. GENERISAN  OTPAD'!$L$21*C15","v":0},0,null,null,0.129]
[11,"Plastične kese",null,{"$f":"'2.PRIKUPLJEN OTPAD'!$H$21*C16","v":0},{"$f":"'3. GENERISAN  OTPAD'!$L$21*C16","v":0},0,null,null,0.224]
[12,"Tvrda plastika",null,{"$f":"'2.PRIKUPLJEN OTPAD'!$H$21*C17","v":0},{"$f":"'3. GENERISAN  OTPAD'!$L$21*C17","v":0},0,null,null,0.1]
[13,"Tekstil",null,{"$f":"'2.PRIKUPLJEN OTPAD'!$H$21*C18","v":0},{"$f":"'3. GENERISAN  OTPAD'!$L$21*C18","v":0},0]
[14,"Koža",null,{"$f":"'2.PRIKUPLJEN OTPAD'!$H$21*C19","v":0},{"$f":"'3. GENERISAN  OTPAD'!$L$21*C19","v":0},0]
[15,"Pelene",null,{"$f":"'2.PRIKUPLJEN OTPAD'!$H$21*C20","v":0},{"$f":"'3. GENERISAN  OTPAD'!$L$21*C20","v":0},0]
[16,"Fini elementi (< 20mm)",null,{"$f":"'2.PRIKUPLJEN OTPAD'!$H$21*C21","v":0},{"$f":"'3. GENERISAN  OTPAD'!$L$21*C21","v":0},0]
[null,"UKUPNO",{"$f":"SUM(C6:C21)","v":0},{"$f":"SUM(D6:D21)","v":0},{"$f":"SUM(E6:E21)","v":0},{"$f":"SUM(F6:F21)","v":0}]
[]
[null,"POČETNA",null,null,null,"Beleške:  "]

{"sheet":"5. ODLAGANJE NA DEPONIJE","index":5,"n_rows":34,"n_cols":18,"rows_kept":34,"cut":false,"hidden":true,"merged":[[33,1,34,2],[27,1,27,2],[26,1,26,2],[28,1,28,2],[29,1,29,2],[30,1,30,2],[0,5,0,6],[1,1,1,3],[0,1,0,3],[25,1,25,2],[24,6,24,7],[3,1,3,10],[24,1,24,2],[25,5,31,10],[31,1,31,2],[0,8,0,25],[1,8,1,16]]}
[null,{"$f":"'2.PRIKUPLJEN OTPAD'!B1","v":"OPŠTINA"},null,null,{"$f":"'2.PRIKUPLJEN OTPAD'!C1","v":"Podaci za period - GODINA"},{"$f":"'4. MORFOLOGIJA OTPADA'!E1","v":0},null,null,"Ovaj radni list se popunjava/koristi SAMO ukoliko u opštini ne postoji selekcija otpada. Molimo pogledati  korisničko uputstvo."]
[null,{"$f":"'2.PRIKUPLJEN OTPAD'!B2","v":"Primer opštine XXX"},null,null,null,null,null,null,"Da li postoji separacija otpada u opštini?",null,null,null,null,null,null,null,null,"Yes"]
[]
[null,"ODLOŽENI KOMUNALNI OTPAD I ŽIVOTNI VEK DEPONIJE BEZ ORGANIZOVANE SEPARACIJE"]
[null,1,2,3,4,5,6,7,8,9,10]
[null,"STRUKTURA MEŠOVITOG KOMUNALNOG OTPADA",{"$f":"'4. MORFOLOGIJA OTPADA'!C5","v":"Procenjeni prosečni sadržaj"},"Količine sakupljenog otpada u tonama","Sakupljeni otpad odložen na tradicionalnu deponiju kao % ukupne vrednosti","Količine sakupljenog otpada odloženog na tradicionalnu deponiju u tonama","Sakupljeni otpad odložen na kontrolisanu deponiju kao % ukupne vrednosti","Količine sakupljenog otpada odloženog na kontrolisanu deponiju u tonama","Sakupljeni otpad koji se spaljuje bez ponovnog iskorišćenja energije kao % ukupne vrednosti","Sakupljeni otpad koji se spaljuje bez ponovnog iskorišćenja energije u tonama","Ukupan odloženi otpad (4+6)"]
[1,{"$f":"'4. MORFOLOGIJA OTPADA'!B6","v":"Baštenski otpad"},{"$f":"'4. MORFOLOGIJA OTPADA'!C6","v":0},{"$f":"'2.PRIKUPLJEN OTPAD'!$H$21*C7","v":0},null,{"$f":"D7*E7","v":0},null,{"$f":"D7*G7","v":0},null,{"$f":"D7*I7","v":0},{"$f":"E7+G7+I7","v":0}]
[2,{"$f":"'4. MORFOLOGIJA OTPADA'!B7","v":"Ostali biorazgradivi \n\notpad"},{"$f":"'4. MORFOLOGIJA OTPADA'!C7","v":0},{"$f":"'2.PRIKUPLJEN OTPAD'!$H$21*C8","v":0},null,{"$f":"D8*E8","v":0},null,{"$f":"D8*G8","v":0},null,0,0]
[3,{"$f":"'4. MORFOLOGIJA OTPADA'!B8","v":"Papir"},{"$f":"'4. MORFOLOGIJA OTPADA'!C8","v":0},{"$f":"'2.PRIKUPLJEN OTPAD'!$H$21*C9","v":0},null,0,null,0,null,0,0]
[4,{"$f":"'4. MORFOLOGIJA OTPADA'!B9","v":"Staklo"},{"$f":"'4. MORFOLOGIJA OTPADA'!C9","v":0},{"$f":"'2.PRIKUPLJEN OTPAD'!$H$21*C10","v":0},null,0,null,0,null,0,0]
[5,{"$f":"'4. MORFOLOGIJA OTPADA'!B10","v":"Karton"},{"$f":"'4. MORFOLOGIJA OTPADA'!C10","v":0},{"$f":"'2.PRIKUPLJEN OTPAD'!$H$21*C11","v":0},null,0,null,0,null,0,0]
[6,{"$f":"'4. MORFOLOGIJA OTPADA'!B11","v":"Kompozitni materijali (karton/vosak)"},{"$f":"'4. MORFOLOGIJA OTPADA'!C11","v":0},{"$f":"'2.PRIKUPLJEN OTPAD'!$H$21*C12","v":0},null,0,null,0,null,0,0]
[7,{"$f":"'4. MORFOLOGIJA OTPADA'!B12","v":"Kompozitni materijali (karton/aluminijum)"},{"$f":"'4. MORFOLOGIJA OTPADA'!C12","v":0},{"$f":"'2.PRIKUPLJEN OTPAD'!$H$21*C13","v":0},null,0,null,0,null,0,0]
[8,{"$f":"'4. MORFOLOGIJA OTPADA'!B13","v":"Metal – ambalažni i \n\nostali"},{"$f":"'4. MORFOLOGIJA OTPADA'!C13","v":0},{"$f":"'2.PRIKUPLJEN OTPAD'!$H$21*C14","v":0},null,0,null,0,null,0,0]
[9,{"$f":"'4. MORFOLOGIJA OTPADA'!B14","v":"Metal – aluminijumske konzerve"},{"$f":"'4. MORFOLOGIJA OTPADA'!C14","v":0},{"$f":"'2.PRIKUPLJEN OTPAD'!$H$21*C15","v":0},null,0,null,0,null,0,0]
[10,{"$f":"'4. MORFOLOGIJA OTPADA'!B15","v":"Plastični ambalažni otpad"},{"$f":"'4. MORFOLOGIJA OTPADA'!C15","v":0},{"$f":"'2.PRIKUPLJEN OTPAD'!$H$21*C16","v":0},null,0,null,0,null,0,0]
[11,{"$f":"'4. MORFOLOGIJA OTPADA'!B16","v":"Plastične kese"},{"$f":"'4. MORFOLOGIJA OTPADA'!C16","v":0},{"$f":"'2.PRIKUPLJEN OTPAD'!$H$21*C17","v":0},null,0,null,0,null,0,0]
[12,{"$f":"'4. MORFOLOGIJA OTPADA'!B17","v":"Tvrda plastika"},{"$f":"'4. MORFOLOGIJA OTPADA'!C17","v":0},{"$f":"'2.PRIKUPLJEN OTPAD'!$H$21*C18","v":0},null,0,null,0,null,0,0]
[13,{"$f":"'4. MORFOLOGIJA OTPADA'!B18","v":"Tekstil"},{"$f":"'4. MORFOLOGIJA OTPADA'!C18","v":0},{"$f":"'2.PRIKUPLJEN OTPAD'!$H$21*C19","v":0},null,0,null,0,null,0,0]
[14,{"$f":"'4. MORFOLOGIJA OTPADA'!B19","v":"Koža"},{"$f":"'4. MORFOLOGIJA OTPADA'!C19","v":0},{"$f":"'2.PRIKUPLJEN OTPAD'!$H$21*C20","v":0},null,0,null,0,null,0,0]
[15,{"$f":"'4. MORFOLOGIJA OTPADA'!B20","v":"Pelene"},{"$f":"'4. MORFOLOGIJA OTPADA'!C20","v":0},{"$f":"'2.PRIKUPLJEN OTPAD'!$H$21*C21","v":0},null,0,null,0,null,0,0]
[16,{"$f":"'4. MORFOLOGIJA OTPADA'!B21","v":"Fini elementi (< 20mm)"},{"$f":"'4. MORFOLOGIJA OTPADA'!C21","v":0},{"$f":"'2.PRIKUPLJEN OTPAD'!$H$21*C22","v":0},null,0,null,0,null,0,0]
[null,"UKUPNO GODIŠNJE",{"$f":"'4. MORFOLOGIJA OTPADA'!C22","v":0},{"$f":"SUM(D7:D22)","v":0},null,{"$f":"SUM(F7:F22)","v":0},null,{"$f":"SUM(H7:H22)","v":0},null,{"$f":"SUM(J7:J22)","v":0},{"$f":"F23+H23","v":0}]
[null,"% ukupne vrednosti",null,null,null,{"$f":"F23/D23","v":{"$error":"#DIV/0!"}},null,{"$f":"H23/D23","v":{"$error":"#DIV/0!"}},null,{"$f":"J23/D23","v":{"$error":"#DIV/0!"}},{"$f":"F24+H24+J24","v":{"$error":"#DIV/0!"}}]
[null,"Životni vek deponije (tradicionalne i kontrolisane)"]
[17,"Broj dana rada deponije godišnje",null,null,null,"Beleške:"]
[18,"Prosečna količina odloženog otpada u t/dan bez spaljivanja",null,{"$f":"D23/D26","v":{"$error":"#DIV/0!"}}]
[19,"Ukupni projektovani kapacitet deponije u tonama"]
[20,"Trenutni kapacitet deponije koji se koristi"]
[21,"Preostali kapacitet u tonama",null,{"$f":"D28*(1-D29)","v":0}]
[22,"Preostali broj godina po trenutnoj stopi odlaganja sa spaljivanjem ",null,{"$f":"D30/K23","v":{"$error":"#DIV/0!"}}]
[23,"Preostali broj godina po trenutnoj stopi odlaganja bez spaljivanja",null,{"$f":"D30/D23","v":{"$error":"#DIV/0!"}}]
[]
[null,"POČETNA"]

{"sheet":"6. PONOVNA UPOTR. I RECIKLAZA","index":6,"n_rows":42,"n_cols":25,"rows_kept":42,"cut":false,"hidden":false,"merged":[[4,0,5,1],[24,1,24,4],[1,1,1,4],[24,22,24,24],[0,1,0,3],[23,23,23,24],[4,23,5,24],[22,23,22,24],[22,0,22,1],[3,3,3,22],[23,0,23,1],[22,16,23,16],[1,8,1,16],[0,8,0,24],[41,4,61,19],[34,1,36,3],[25,16,25,24],[22,20,23,20],[22,18,23,18],[22,6,23,6],[22,8,23,8],[22,4,23,4]]}
[null,{"$f":"'2.PRIKUPLJEN OTPAD'!B1","v":"OPŠTINA"},null,null,{"$f":"'5. ODLAGANJE NA DEPONIJE'!E1","v":"Podaci za period - GODINA"},{"$f":"'5. ODLAGANJE NA DEPONIJE'!F1:G1","v":0},null,null,"Ovaj radni list se popunjava/koristi SAMO ukoliko u opštini ne postoji selekcija otpada. Molimo pogledati  korisničko uputstvo."]
[null,{"$f":"'2.PRIKUPLJEN OTPAD'!B2","v":"Primer opštine XXX"},null,null,null,null,null,null,"Da li postoji separacija otpada u opštini?",null,null,null,null,null,null,null,null,"Yes"]
[]
[null,null,null,"ORGANIZOVANA SEPARACIJA - SEPARIRANI KOMUNALNI OTPAD I ODLOŽENI OTPAD - PONOVNO ISKORIŠĆENJE OTPADA, TRETMAN I ŽIVOTNI VEK DEPONIJE"]
["STRUKTURA MEŠOVITOG KOMUNALNOG OTPADA",null,null,1,2,3,4,5,6,7,8,9,10,11,12,null,13,14,15,16,17,18,19]
[null,null,"Estimated Average Content ","Količine sakupljenog otpada u tonama","Komunalni otpad separiran na izvoru kao % ukupne VREDNOSTI","Količine komunalnog otpada separisanog na izvoru u tonama","Komunalni otpad separiran na lokaciji za odlaganje kao % ukupne VREDNOSTI","Količine otpada separiranog na odlagalištu u tonama ","Separirani otpad kao % ukupno sakupljenog otpada","Količine separiranog otpada u tonama","Struktura ukupnog separiranog otpada","Sakupljeni otpad odložen na deponiju kao % ukupne količine","Količine sakupljenog otpada odloženog na deponiju u tonama","Struktura ukupnog otpada odloženog na deponiju posle separacije kao % ukupne vrednosti","Ukupni % separisanog i odloženog otpada ",null,"Separiran otpad stavljen na tržište za reciklažu ili na zalihe kao % ukupnog separiranog otpada","Separirani otpad recikliran i stavljen na tržište u tonama ","Separirani otpad spaljen sa ili bez ponovnog iskorišćenja energije kao % ukupnog separiranog otpada","Separirani otpad spaljen sa ili bez ponovnog iskorišćenja energije u tonama","Separiran kompostiran otpad kao % ukupnog separiranog otpada ","Separiran kompostiran otpad u tonama","Ukupni % separiranog otpada"]
[1,{"$f":"'4. MORFOLOGIJA OTPADA'!B6","v":"Baštenski otpad"},{"$f":"'4. MORFOLOGIJA OTPADA'!C6","v":0},{"$f":"'2.PRIKUPLJEN OTPAD'!$H$21*C7","v":0},null,{"$f":"D7*E7","v":0},null,{"$f":"D7*G7","v":0},{"$f":"E7+G7","v":0},{"$f":"F7+H7","v":0},{"$f":"J7/J$23","v":{"$error":"#DIV/0!"}},null,{"$f":"D7*L7","v":0},{"$f":"M7/M$23","v":{"$error":"#DIV/0!"}},{"$f":"E7+G7+L7","v":0},null,null,{"$f":"(F7+H7)*Q7","v":0},null,{"$f":"(H7+F7)*S7","v":0},null,{"$f":"(F7+H7)*U7","v":0},{"$f":"Q7+S7+U7","v":0},1,{"$f":"'4. MORFOLOGIJA OTPADA'!B6","v":"Baštenski otpad"}]
[2,{"$f":"'4. MORFOLOGIJA OTPADA'!B7","v":"Ostali biorazgradivi \n\notpad"},{"$f":"'4. MORFOLOGIJA OTPADA'!C7","v":0},{"$f":"'2.PRIKUPLJEN OTPAD'!$H$21*C8","v":0},null,{"$f":"D8*E8","v":0},null,{"$f":"D8*G8","v":0},{"$f":"E8+G8","v":0},{"$f":"F8+H8","v":0},{"$f":"J8/J$23","v":{"$error":"#DIV/0!"}},null,{"$f":"D8*L8","v":0},{"$f":"M8/M$23","v":{"$error":"#DIV/0!"}},0,null,null,0,null,{"$f":"(H8+F8)*S8","v":0},null,{"$f":"(F8+H8)*U8","v":0},{"$f":"Q8+S8+U8","v":0},2,{"$f":"'4. MORFOLOGIJA OTPADA'!B7","v":"Ostali biorazgradivi \n\notpad"}]
[3,{"$f":"'4. MORFOLOGIJA OTPADA'!B8","v":"Papir"},{"$f":"'4. MORFOLOGIJA OTPADA'!C8","v":0},{"$f":"'2.PRIKUPLJEN OTPAD'!$H$21*C9","v":0},null,0,null,0,0,0,{"$error":"#DIV/0!"},null,0,{"$error":"#DIV/0!"},0,null,null,0,null,0,null,0,0,3,{"$f":"'4. MORFOLOGIJA OTPADA'!B8","v":"Papir"}]
[4,{"$f":"'4. MORFOLOGIJA OTPADA'!B9","v":"Staklo"},{"$f":"'4. MORFOLOGIJA OTPADA'!C9","v":0},{"$f":"'2.PRIKUPLJEN OTPAD'!$H$21*C10","v":0},null,0,null,0,0,0,{"$error":"#DIV/0!"},null,0,{"$error":"#DIV/0!"},0,null,null,0,null,0,null,0,0,4,{"$f":"'4. MORFOLOGIJA OTPADA'!B9","v":"Staklo"}]
[5,{"$f":"'4. MORFOLOGIJA OTPADA'!B10","v":"Karton"},{"$f":"'4. MORFOLOGIJA OTPADA'!C10","v":0},{"$f":"'2.PRIKUPLJEN OTPAD'!$H$21*C11","v":0},null,0,null,0,0,0,{"$error":"#DIV/0!"},null,0,{"$error":"#DIV/0!"},0,null,null,0,null,0,null,0,0,5,{"$f":"'4. MORFOLOGIJA OTPADA'!B10","v":"Karton"}]
[6,{"$f":"'4. MORFOLOGIJA OTPADA'!B11","v":"Kompozitni materijali (karton/vosak)"},{"$f":"'4. MORFOLOGIJA OTPADA'!C11","v":0},{"$f":"'2.PRIKUPLJEN OTPAD'!$H$21*C12","v":0},null,0,null,0,0,0,{"$error":"#DIV/0!"},null,0,{"$error":"#DIV/0!"},0,null,null,0,null,0,null,0,0,6,{"$f":"'4. MORFOLOGIJA OTPADA'!B11","v":"Kompozitni materijali (karton/vosak)"}]
[7,{"$f":"'4. MORFOLOGIJA OTPADA'!B12","v":"Kompozitni materijali (karton/aluminijum)"},{"$f":"'4. MORFOLOGIJA OTPADA'!C12","v":0},{"$f":"'2.PRIKUPLJEN OTPAD'!$H$21*C13","v":0},null,0,null,0,0,0,{"$error":"#DIV/0!"},null,0,{"$error":"#DIV/0!"},0,null,null,0,null,0,null,0,0,7,{"$f":"'4. MORFOLOGIJA OTPADA'!B12","v":"Kompozitni materijali (karton/aluminijum)"}]
[8,{"$f":"'4. MORFOLOGIJA OTPADA'!B13","v":"Metal – ambalažni i \n\nostali"},{"$f":"'4. MORFOLOGIJA OTPADA'!C13","v":0},{"$f":"'2.PRIKUPLJEN OTPAD'!$H$21*C14","v":0},null,0,null,0,0,0,{"$error":"#DIV/0!"},null,0,{"$error":"#DIV/0!"},0,null,null,0,null,0,null,0,0,8,{"$f":"'4. MORFOLOGIJA OTPADA'!B13","v":"Metal – ambalažni i \n\nostali"}]
[9,{"$f":"'4. MORFOLOGIJA OTPADA'!B14","v":"Metal – aluminijumske konzerve"},{"$f":"'4. MORFOLOGIJA OTPADA'!C14","v":0},{"$f":"'2.PRIKUPLJEN OTPAD'!$H$21*C15","v":0},null,0,null,0,0,0,{"$error":"#DIV/0!"},null,0,{"$error":"#DIV/0!"},0,null,null,0,null,0,null,0,0,9,{"$f":"'4. MORFOLOGIJA OTPADA'!B14","v":"Metal – aluminijumske konzerve"}]
[10,{"$f":"'4. MORFOLOGIJA OTPADA'!B15","v":"Plastični ambalažni otpad"},{"$f":"'4. MORFOLOGIJA OTPADA'!C15","v":0},{"$f":"'2.PRIKUPLJEN OTPAD'!$H$21*C16","v":0},null,0,null,0,0,0,{"$error":"#DIV/0!"},null,0,{"$error":"#DIV/0!"},0,null,null,0,null,0,null,0,0,10,{"$f":"'4. MORFOLOGIJA OTPADA'!B15","v":"Plastični ambalažni otpad"}]
[11,{"$f":"'4. MORFOLOGIJA OTPADA'!B16","v":"Plastične kese"},{"$f":"'4. MORFOLOGIJA OTPADA'!C16","v":0},{"$f":"'2.PRIKUPLJEN OTPAD'!$H$21*C17","v":0},null,0,null,0,0,0,{"$error":"#DIV/0!"},null,0,{"$error":"#DIV/0!"},0,null,null,0,null,0,null,0,0,11,{"$f":"'4. MORFOLOGIJA OTPADA'!B16","v":"Plastične kese"}]
[12,{"$f":"'4. MORFOLOGIJA OTPADA'!B17","v":"Tvrda plastika"},{"$f":"'4. MORFOLOGIJA OTPADA'!C17","v":0},{"$f":"'2.PRIKUPLJEN OTPAD'!$H$21*C18","v":0},null,0,null,0,0,0,{"$error":"#DIV/0!"},null,0,{"$error":"#DIV/0!"},0,null,null,0,null,0,null,0,0,12,{"$f":"'4. MORFOLOGIJA OTPADA'!B17","v":"Tvrda plastika"}]
[13,{"$f":"'4. MORFOLOGIJA OTPADA'!B18","v":"Tekstil"},{"$f":"'4. MORFOLOGIJA OTPADA'!C18","v":0},{"$f":"'2.PRIKUPLJEN OTPAD'!$H$21*C19","v":0},null,0,null,0,0,{"$f":"F19+H19","v":0},{"$f":"J19/J$23","v":{"$error":"#DIV/0!"}},null,0,{"$error":"#DIV/0!"},0,null,null,0,null,0,null,0,0,13,{"$f":"'4. MORFOLOGIJA OTPADA'!B18","v":"Tekstil"}]
[14,{"$f":"'4. MORFOLOGIJA OTPADA'!B19","v":"Koža"},{"$f":"'4. MORFOLOGIJA OTPADA'!C19","v":0},{"$f":"'2.PRIKUPLJEN OTPAD'!$H$21*C20","v":0},null,0,null,0,0,0,{"$error":"#DIV/0!"},null,0,{"$error":"#DIV/0!"},0,null,null,0,null,0,null,0,0,14,{"$f":"'4. MORFOLOGIJA OTPADA'!B19","v":"Koža"}]
[15,{"$f":"'4. MORFOLOGIJA OTPADA'!B20","v":"Pelene"},{"$f":"'4. MORFOLOGIJA OTPADA'!C20","v":0},{"$f":"'2.PRIKUPLJEN OTPAD'!$H$21*C21","v":0},null,0,null,0,0,0,{"$error":"#DIV/0!"},null,0,{"$error":"#DIV/0!"},0,null,null,0,null,0,null,0,0,15,{"$f":"'4. MORFOLOGIJA OTPADA'!B20","v":"Pelene"}]
[16,{"$f":"'4. MORFOLOGIJA OTPADA'!B21","v":"Fini elementi (< 20mm)"},{"$f":"'4. MORFOLOGIJA OTPADA'!C21","v":0},{"$f":"'2.PRIKUPLJEN OTPAD'!$H$21*C22","v":0},null,0,null,0,0,0,{"$error":"#DIV/0!"},null,0,{"$error":"#DIV/0!"},0,null,null,0,null,0,null,0,0,16,{"$f":"'4. MORFOLOGIJA OTPADA'!B21","v":"Fini elementi (< 20mm)"}]
["TOTAL",null,{"$f":"SUM(C7:C22)","v":0},{"$f":"SUM(D7:D22)","v":0},null,{"$f":"SUM(F7:F22)","v":0},null,{"$f":"SUM(H7:H22)","v":0},null,{"$f":"SUM(J7:J22)","v":0},{"$error":"#DIV/0!"},null,{"$f":"SUM(M7:M22)","v":0},{"$f":"SUM(N7:N22)","v":{"$error":"#DIV/0!"}},{"$f":"F23+H23+M23","v":0},null,"out of total waste separated ",{"$f":"SUM(R7:R22)","v":0},"out of total waste separated ",{"$f":"SUM(T7:T22)","v":0},"out of total waste separated ",{"$f":"SUM(V7:V22)","v":0},{"$f":"R23+T23+V23","v":0},"TOTAL"]
["% of TOTAL",null,null,null,null,{"$f":"F23/D23","v":{"$error":"#DIV/0!"}},null,{"$f":"H23/D23","v":{"$error":"#DIV/0!"}},null,{"$f":"J23/D23","v":{"$error":"#DIV/0!"}},null,null,{"$f":"M23/D23","v":{"$error":"#DIV/0!"}},null,{"$f":"O23/D23","v":{"$error":"#DIV/0!"}},null,null,{"$f":"R23/(F23+H23)","v":{"$error":"#DIV/0!"}},null,{"$f":"T23/(F23+H23)","v":{"$error":"#DIV/0!"}},null,{"$f":"V23/(F23+H23)","v":{"$error":"#DIV/0!"}},{"$f":"R24+T24+V24","v":{"$error":"#DIV/0!"}},"% of TOTAL"]
[null,{"$f":"'5. ODLAGANJE NA DEPONIJE'!B25:C25","v":"Životni vek deponije (tradicionalne i kontrolisane)"}]
[17,"Broj dana rada deponije godišnje",null,null,null,null,null,null,null,null,null,null,null,null,null,null," "]
[18,"Prosečni odloženi otpad u tonama na dan pre separacije ",null,{"$f":"D23/D26","v":{"$error":"#DIV/0!"}}]
[19,"Prosečni odloženi otpad u tonama na dan posle separacije ",null,{"$f":"M23/D26","v":{"$error":"#DIV/0!"}}]
[20,"Ukupni projektovani kapacitet deponije u tonama"]
[21,{"$f":"'5. ODLAGANJE NA DEPONIJE'!B29","v":"Trenutni kapacitet deponije koji se koristi"}]
[22," Preostali kapacitet u tonama",null,{"$f":"D29*(1-D30)","v":0}]
[23,"Životni vek deponije- preostale godine posle separacije, reciklaže i ponovnog iskorišćenja ",null,{"$f":"D31/M23","v":{"$error":"#DIV/0!"}}]
[24,"Životni vek deponije- preostale godine po trenutnoj stopi odlaganja bez separacije ili spaljivanja  ",null,{"$f":"D31/D23","v":{"$error":"#DIV/0!"}}]
[]
[null,"POČETNA"]
[]
[]
[]
[]
[]
[]
[null,null,null,null,"Beleške:"]

{"sheet":"7. TROŠKOVI PRIKUPLJ. I TRANSP.","index":7,"n_rows":27,"n_cols":15,"rows_kept":27,"cut":false,"hidden":false,"merged":[[0,14,7,22],[1,8,1,11],[4,10,4,13],[26,3,37,9],[26,1,28,1],[22,2,22,3],[24,2,24,3],[0,6,0,7],[13,2,13,3],[14,2,14,3],[15,2,15,3],[12,2,12,3],[8,2,8,3],[9,2,9,3],[10,2,10,3],[11,2,11,3],[4,9,6,9],[18,2,18,3],[21,2,21,3],[23,2,23,3],[16,2,16,3],[20,2,20,3],[17,2,17,3],[7,6,7,9],[7,1,7,3],[19,2,19,3]]}
[null,{"$f":"'2.PRIKUPLJEN OTPAD'!B1","v":"OPŠTINA"},null,{"$f":"'2.PRIKUPLJEN OTPAD'!C1","v":"Podaci za period - GODINA"},{"$f":"'2.PRIKUPLJEN OTPAD'!E1:F1","v":0},null,"POKRIVENOST USLUGOM ORGANIZOVANOG SAKUPLJANJA OTPADA",null,null,null,null,null,null,null,"Ovaj radni list pokazuje finansijsku održivost usluge i indikativan je. Detaljnija analiza prihoda i rashoda je neophodna pre nego se izvrši promena tarife."]
[null,{"$f":"'2.PRIKUPLJEN OTPAD'!B2","v":"Primer opštine XXX"},null,null,null,"a","Ukupno domaćinstva",{"$f":"SUM(H3:H4)","v":0},{"$f":"IF(H2='2.PRIKUPLJEN OTPAD'!C5,\"Poklapa se sa vrednostima iz Radnog lista 2 – Prikupljen otpad\", \"Ne poklapa se sa vrednostima iz Radnog lista 2 – Prikupljen otpad\")","v":"Poklapa se sa vrednostima iz Radnog lista 2 – Prikupljen otpad"}]
[null,{"$f":"'2.PRIKUPLJEN OTPAD'!B3","v":"Površina u km2"},{"$f":"'2.PRIKUPLJEN OTPAD'!C3","v":0},null,null,"b","Urbanih"]
[null,{"$f":"'2.PRIKUPLJEN OTPAD'!B4","v":"Ukupan broj stanovnika"},{"$f":"'2.PRIKUPLJEN OTPAD'!C4","v":0},null,null,"c","Ruralnih"]
[null,{"$f":"'2.PRIKUPLJEN OTPAD'!B5","v":"Ukupan broj domaćinstva"},{"$f":"'2.PRIKUPLJEN OTPAD'!C5","v":0},null,null,"d","Ukupan broj opsluženih domaćinstava",{"$f":"SUM(H6:H7)","v":0},{"$f":"H5/H2","v":{"$error":"#DIV/0!"}},"Pokrivenost uslugom",{"$f":"IF(H5='2.PRIKUPLJEN OTPAD'!C10,\"Poklapa se sa vrednostima iz Radnog lista 2 – Prikupljen otpad\", \"Ne poklapa se sa vrednostima iz Radnog lista 2 – Prikupljen otpad\")","v":"Poklapa se sa vrednostima iz Radnog lista 2 – Prikupljen otpad"}]
[null,{"$f":"'2.PRIKUPLJEN OTPAD'!B6","v":"Prosečan broj članova domaćinstva"},{"$f":"'2.PRIKUPLJEN OTPAD'!C6","v":{"$error":"#DIV/0!"}},null,null,"e","Urbanih",null,{"$f":"H6/H3","v":{"$error":"#DIV/0!"}}]
[null,null,null,null,null,"f","Ruralnih",null,{"$f":"H7/H4","v":{"$error":"#DIV/0!"}}]
[null,"OPŠTI I FINANSIJSKI PODACI",null,null,null,null,"TARIFE"]
[1,"Javno komunalno preduzeće- Naziv i lokacija operatera",null,null,null,1,"Krajni korisnik usluge","Važeća tarifa. Navedite politiku fakturisanja cena po korisniku usluge (po m2 ili m3 mesečno, po kg/t, ili drugo) u RSD","Obračunska jedinica","Neophodne tarife u RSD da bi se postigao rezultat 100%  naplate prihoda","Indeks povećanja tarifa"]
[2,"Glavne delatnosti i usluge",null,null,null,2,null,null,null,{"$f":"H10/$C$12","v":{"$error":"#DIV/0!"}},{"$f":"J10/H10","v":{"$error":"#DIV/0!"}}]
[3,"Udeo prihoda od čvrstog otpada u ukupnim prihodima preduzeća",null,null,null,3,null,null,null,{"$error":"#DIV/0!"},{"$error":"#DIV/0!"}]
[4,"% fakturisanih/naplaćenih prihoda od usluga sakupljanja otpada",null,null,null,4,null,null,null,{"$error":"#DIV/0!"},{"$error":"#DIV/0!"}]
[5,"Ukupni prihodi od usluga sakupljanja otpada u RSD godišnje ",null,null,null,5,null,null,null,{"$error":"#DIV/0!"},{"$error":"#DIV/0!"}]
[6,"Ukupni rashodi (materijalni troškovi, plate i drugi troškovi) povezani sa sakupljanjem i transportom otpada, u RSD godišnje ",null,null,null,6,null,null,null,{"$error":"#DIV/0!"},{"$error":"#DIV/0!"}]
[7,"Poslovni profit/gubitak godišnje u RSD",{"$f":"C13-C14","v":0},null,null,7,null,null,null,{"$error":"#DIV/0!"},{"$error":"#DIV/0!"}]
[8,"Neophodno povećanje prihoda za pokriće gubitka/ili profita iz poslovanja preko operativnih troškova (znak -)",{"$f":"C15/-C13","v":{"$error":"#DIV/0!"}},null,null,8,null,null,null,{"$error":"#DIV/0!"},{"$error":"#DIV/0!"}]
[9,"Neophodno smanjenje rashoda za pokriće gubitka (znak -) iz poslovanja/ ili  operativnih troškova ispod prihoda",{"$f":"C15/C14","v":{"$error":"#DIV/0!"}},null,null,9,null,null,null,{"$error":"#DIV/0!"},{"$error":"#DIV/0!"}]
[10,"Ukupan sakupljeni otpad u tonama godišnje",{"$f":"'2.PRIKUPLJEN OTPAD'!H21","v":0},null,null,10,null,null,null,{"$error":"#DIV/0!"},{"$error":"#DIV/0!"}]
[11,"Ukupan broj zaposlenih na sakupljanju i transportu otpada uključujući administraciju",null,null,null,11,null,null,null,{"$error":"#DIV/0!"},{"$error":"#DIV/0!"}]
[12,"Broj zaposlenih direktno operativno uključenih u sakupljanje i transport otpada ",null,null,null,12,null,null,null,{"$error":"#DIV/0!"},{"$error":"#DIV/0!"}]
[13,"Odnos zaposlenih, administrativni u odnosu na operativne kadrove 1:",{"$f":"C20/(C19-C20)","v":{"$error":"#DIV/0!"}},null,null,13,null,null,null,{"$error":"#DIV/0!"},{"$error":"#DIV/0!"}]
[14,"Količina godišnje sakupljenog otpada po zaposlenom koji radi na sakupljanju i transportu otpada u tonama ",{"$f":"C18/C19","v":{"$error":"#DIV/0!"}},null,null,14,null,null,null,{"$error":"#DIV/0!"},{"$error":"#DIV/0!"}]
[15,"Broj stanovnika pokrivenih uslugom po zaposlenom koji radi na sakupljanju i transportu otpada ",{"$f":"(H5/C19)","v":{"$error":"#DIV/0!"}},null,null,15,null,null,null,{"$error":"#DIV/0!"},{"$error":"#DIV/0!"}]
[16,"Broj zaposlenih na koji radi na sakupljanju i transportu otpada na 1000 stanovnika pokrivenih uslugom  ",{"$f":"1000/C23","v":{"$error":"#DIV/0!"}},null,null,16,null,null,null,{"$error":"#DIV/0!"},{"$error":"#DIV/0!"}]
[17,"Trenutni troškovi za sakupljanje i transport otpada RSD/toni",{"$f":"C14/C18","v":{"$error":"#DIV/0!"}},null,null,17,null,null,null,{"$error":"#DIV/0!"},{"$error":"#DIV/0!"}]
[]
[null,"POČETNA",null,"Beleške: "]

{"sheet":"8. FINANSIRANJE INVESTICIJA","index":8,"n_rows":72,"n_cols":10,"rows_kept":72,"cut":false,"hidden":false,"merged":[[3,1,3,9],[71,1,73,1],[64,3,66,3],[64,6,66,6],[59,1,59,5]]}
[null,{"$f":"'2.PRIKUPLJEN OTPAD'!B1","v":"OPŠTINA"},null,{"$f":"'2.PRIKUPLJEN OTPAD'!C1","v":"Podaci za period - GODINA"},{"$f":"'2.PRIKUPLJEN OTPAD'!E1:F1","v":0}]
[null,{"$f":"'2.PRIKUPLJEN OTPAD'!B2","v":"Primer opštine XXX"}]
[]
[null,"INVESTICIJE U OPREMU I SREDSTVA"]
[]
[null,"OPERATER- NAZIV JAVNOG KOMUNALNOG PREDUZEĆA",1,2,3,4,5,6,7,8]
[null,"Vrsta opreme za sakupljanje i transport otpada","Postojeći broj jedinica u funkciji","Planirane nove nabavke","Nabavna cena nove jedinice u RSD","Neophodna ulaganja u RSD","Stopa amortizacije","Godišnja amortizacija","Planirani rashodi za servisiranje zaduženja godišnje ","Amortizacija i servisiranje zaduženja godišnje"]
[1,"Kontejner 120 l",null,null,null,{"$f":"D8*E8","v":0},null,{"$f":"F8*G8","v":0},null,{"$f":"H8+I8","v":0}]
[2,"Kontejner 240 l",null,null,null,{"$f":"D9*E9","v":0},null,{"$f":"F9*G9","v":0},null,{"$f":"H9+I9","v":0}]
[3,"Kontejner 660 l",null,null,null,{"$f":"D10*E10","v":0},null,{"$f":"F10*G10","v":0},null,{"$f":"H10+I10","v":0}]
[4,"Kontejner 770 l",null,null,null,{"$f":"D11*E11","v":0},null,{"$f":"F11*G11","v":0},null,{"$f":"H11+I11","v":0}]
[5,"Kontejner 1100 l",null,null,null,0,null,0,null,0]
[6,"Kontejneri-gvozdene korpe 3,5m3",null,null,null,0,null,0,null,0]
[7,"Kontejneri-gvozdene korpe 5m³",null,null,null,0,null,0,null,0]
[8,"Kontejneri-gvozdene korpe 7m³",null,null,null,0,null,0,null,0]
[9,"Kontejneri sa kukom 2,5",null,null,null,0,null,0,null,0]
[10,"Kontejneri sa kukom 5m³",null,null,null,0,null,0,null,0]
[11,"Kontejneri sa kukom 10m³",null,null,null,0,null,0,null,0]
[12,"Kontejneri sa kukom 25m³",null,null,null,0,null,0,null,0]
[13,"Kontejneri sa kukom 35m³",null,null,null,0,null,0,null,0]
[14,null,null,null,null,0,null,0,null,0]
[15,null,null,null,null,0,null,0,null,0]
[16,"Ostali kontejneri",null,null,null,{"$f":"D23*E23","v":0},null,{"$f":"F23*G23","v":0},null,0]
[null,"Podzbir oprema za sakupljanje",{"$f":"SUM(C8:C23)","v":0},{"$f":"SUM(D8:D23)","v":0},null,{"$f":"SUM(F8:F23)","v":0},null,{"$f":"SUM(H8:H23)","v":0},{"$f":"SUM(I8:I23)","v":0},{"$f":"SUM(J8:J23)","v":0}]
[1,"Kamioni 8t",null,null,null,{"$f":"D25*E25","v":0},null,{"$f":"F25*G25","v":0},null,{"$f":"H25+I25","v":0}]
[2,"Kamioni 12t",null,null,null,{"$f":"D26*E26","v":0},null,{"$f":"F26*G26","v":0},null,{"$f":"H26+I26","v":0}]
[3," Rotopres kamioni",null,null,null,{"$f":"D27*E27","v":0},null,{"$f":"F27*G27","v":0},null,{"$f":"H27+I27","v":0}]
[4,"Kompaktor kamioni",null,null,null,{"$f":"D28*E28","v":0},null,{"$f":"F28*G28","v":0},null,{"$f":"H28+I28","v":0}]
[5,"Kiper kamion",null,null,null,{"$f":"D29*E29","v":0},null,{"$f":"F29*G29","v":0},null,{"$f":"H29+I29","v":0}]
[6,"Kamion sa plato prikolicom",null,null,null,0,null,0,null,0]
[7," Kamion sa gvozdenom korpom ",null,null,null,0,null,0,null,0]
[8,"Kamion sa kukom ",null,null,null,0,null,0,null,0]
[9,"Kamion sa prikolicom za bočni utovar",null,null,null,0,null,0,null,0]
[10,"Traktor i prikolica",null,null,null,0,null,0,null,0]
[11,"Druga vozila",null,null,null,{"$f":"D35*E35","v":0},null,{"$f":"F35*G35","v":0},null,0]
[null,"Podzbir oprema za transport",{"$f":"SUM(C25:C35)","v":0},{"$f":"SUM(D25:D35)","v":0},null,{"$f":"SUM(F25:F35)","v":0},null,{"$f":"SUM(H25:H35)","v":0},{"$f":"SUM(I25:I35)","v":0},{"$f":"SUM(J25:J35)","v":0}]
[null,"UKUPNO SAKUPLJANJE",null,null,null,{"$f":"F24+F36","v":0},null,{"$f":"H24+H36","v":0},{"$f":"I24+I36","v":0},{"$f":"J24+J36","v":0}]
[null,"OPERATER- NAZIV JAVNOG KOMUNALNOG PREDUZEĆA","1.1","2.1","3.1","4.1","5.1","6.1","7.1","8.1"]
[null,"Tretman, reciklaža i ponovno iskorišćenje otpada","Postojeći broj jedinica u funkciji","Planirane nove nabavke","Nabavna cena nove jedinice u RSD","Neophodna ulaganja u RSD","Stopa amortizacije","Godišnja amortizacija","Planirani rashodi za servisiranje zaduženja godišnje ","Amortizacija i servisiranje zaduženja godišnje"]
[1,"Istražni radovi, projektovanje, dozvole",null,null,null,{"$f":"D40*E40","v":0},null,{"$f":"F40*G40","v":0},null,{"$f":"H40+I40","v":0}]
[2,"Kupovina zemljišta",null,null,null,{"$f":"D41*E41","v":0},null,{"$f":"F41*G41","v":0},null,{"$f":"H41+I41","v":0}]
[3,"Mašinska postrojenja",null,null,null,0,null,0,null,0]
[4,"Prenosna oprema",null,null,null,0,null,0,null,0]
[5,"Građevinski radovi",null,null,null,0,null,0,null,0]
[6,null,null,null,null,0,null,0,null,0]
[7,"Ostali troškovi",null,null,null,0,null,0,null,{"$f":"H46+I46","v":0}]
[null,"Podzbir tretman",{"$f":"SUM(C40:C46)","v":0},null,null,{"$f":"SUM(F40:F46)","v":0},null,{"$f":"SUM(H40:H46)","v":0},{"$f":"SUM(I40:I46)","v":0},{"$f":"SUM(J40:J46)","v":0}]
[null,"OPERATER- NAZIV JAVNOG KOMUNALNOG PREDUZEĆA","1.2","2.2","3.2","4.2","5.2","6.2","7.2","8.2"]
[null,"Ulaganja u deponiju","Postojeći broj jedinica u funkciji","Planirane nove nabavke","Nabavna cena nove jedinice u RSD","Neophodna ulaganja u RSD","Stopa amortizacije","Godišnja amortizacija","Planirani rashodi za servisiranje zaduženja godišnje ","Amortizacija i servisiranje zaduženja godišnje"]
[1,"Istražni radovi, projektovanje, dozvole",null,null,null,0,null,0,null,0]
[2,"Kupovina zemljišta",null,null,null,0,null,0,null,0]
[3,"Mašinska postrojenja",null,null,null,0,null,0,null,0]
[4,"Prenosna oprema",null,null,null,0,null,0,null,0]
[5,"Građevinski radovi",null,null,null,{"$f":"D54*E54","v":0},null,{"$f":"F54*G54","v":0},null,{"$f":"H54+I54","v":0}]
[6,null,null,null,null,{"$f":"D55*E55","v":0},null,{"$f":"F55*G55","v":0},null,{"$f":"H55+I55","v":0}]
[7,"Ostali troškovi",null,null,null,{"$f":"D56*E56","v":0},null,{"$f":"F56*G56","v":0},null,{"$f":"H56+I56","v":0}]
[null,"Podzbir odlaganje na deponiju",{"$f":"SUM(C50:C56)","v":0},null,null,{"$f":"SUM(F50:F56)","v":0},null,{"$f":"SUM(H50:H56)","v":0},{"$f":"SUM(I50:I56)","v":0},{"$f":"SUM(J50:J56)","v":0}]
[null,"UKUPNO TRETMAN I ODLAGANJE",null,null,null,{"$f":"F47+F57","v":0},null,{"$f":"H47+H57","v":0},{"$f":"I47+I57","v":0},{"$f":"J47+J57","v":0}]
[null,"UKUPNI ZBIR INVESTICIJE",null,null,null,{"$f":"SUM(F37,F58)","v":0},null,{"$f":"SUM(H37,H58)","v":0},{"$f":"SUM(I37,I58)","v":0},{"$f":"SUM(J37,J58)","v":0}]
[null,"KOREKCIJA TROŠKOVA ZA SAKUPLJANJE, TRANSPORT, RECIKLAŽU I DEPONIJU"]
[1,"Trenutni godišnji rashodi za sakupljanje i transport u RSD",{"$f":"'7. TROŠKOVI PRIKUPLJ. I TRANSP.'!C14:D14","v":0},null,"Trenutni godišnji troškovi za skupljanje, transport, tretman, ponovno iskorišćenje i odlaganje na deponiju u RSD",{"$f":"C61","v":0}]
[2,"Procenjeni dodatni godišnji rashodi za opremu za sakupljanje ",{"$f":"J37","v":0},{"$f":"C62/$C$61","v":{"$error":"#DIV/0!"}},"Procenjeni dodatni godišnji rashodi za sve investicije (kapitalni troškovi)",{"$f":"J59","v":0}]
[3,"Procenjeno godišnje povećanje varijabilnih troškova za sakupljanje i transport u RSD",null,{"$f":"C63/$C$61","v":{"$error":"#DIV/0!"}},"Procenjeno godišnje povećanje operativnih troškova za tretman i deponiju, ukupno u RSD"]
[4,"Procenjeno godišnje povećanje rashoda",{"$f":"SUM(C62:C63)","v":0},{"$f":"C64/$C$61","v":{"$error":"#DIV/0!"}},"Procenjeno godišnje povećanje rashoda",{"$f":"SUM(F62:F63)","v":0},{"$f":"F64/$F$61","v":{"$error":"#DIV/0!"}}]
[5,"Ukupni godišnji rashodi",{"$f":"SUM(C61:C63)","v":0},null,"Procenjeni ukupni godišnji rashodi",{"$f":"SUM(F61:F63)","v":0}]
[6,"Trenutni troškovi sakupljanja i transporta po toni RSD/toni",{"$f":"'7. TROŠKOVI PRIKUPLJ. I TRANSP.'!C25:D25","v":{"$error":"#DIV/0!"}},null,{"$f":"B67","v":"Procenjeni troškovi sakupljanja i transporta uključujući povećanje za investicije i opremu u RSD/toni"},{"$f":"C67","v":{"$error":"#DIV/0!"}}]
[7,"Procenjeni troškovi sakupljanja i transporta uključujući povećanje za investicije i opremu u RSD/toni",{"$f":"C66*(1+D64)","v":{"$error":"#DIV/0!"}},null,"Procenjeno povećanje rashoda za investicije u reciklažu, ponovno iskorišćenje i  odlaganja na deponiju sakupljenih količina u RSD/toni",{"$f":"F64/'2.PRIKUPLJEN OTPAD'!H21","v":{"$error":"#DIV/0!"}}]
[8,"Procenjeno povećanje troškova za sakupljanje i transport po toni u RSD",{"$f":"C67-C66","v":{"$error":"#DIV/0!"}},{"$f":"C68/C66","v":{"$error":"#DIV/0!"}},"Procenjeni ukupni troškovi upravljanja otpadom (sakupljanje, transport, tretman i odlaganje na deponiju) sa povećanjem za investicije u RSD/toni",{"$f":"F67+F66","v":{"$error":"#DIV/0!"}},{"$f":"F68/$F$69","v":{"$error":"#DIV/0!"}}]
[null,null,null,null,{"$f":"B66","v":"Trenutni troškovi sakupljanja i transporta po toni RSD/toni"},{"$f":"C66","v":{"$error":"#DIV/0!"}}]
[null,null,null,null,"Procenjeno povećanje rashoda za investicije u sakupljanje, transport, tretman i odlaganje na deponiju u RSD/toni",{"$f":"F68-F69","v":{"$error":"#DIV/0!"}},{"$f":"F70/$F$69","v":{"$error":"#DIV/0!"}}]
[]
[null,"POČETNA"]

{"sheet":"9. NARATIVNI DEO","index":9,"n_rows":175,"n_cols":8,"rows_kept":175,"cut":false,"hidden":false,"merged":[[26,2,26,4],[24,2,24,4],[29,4,29,5],[1,1,1,4],[0,1,0,4],[22,2,22,4],[154,3,154,4],[155,3,155,4],[166,3,166,4],[167,3,167,4],[168,3,168,4],[137,3,137,4],[138,3,138,4],[144,3,144,4],[131,3,131,4],[133,3,133,4],[57,2,57,4],[60,2,60,4],[134,3,134,4],[135,3,135,4],[132,3,132,4],[130,3,130,4],[62,2,62,4],[58,2,58,4],[174,1,176,1],[139,3,139,4],[140,3,140,4],[141,3,141,4],[143,3,143,4],[142,3,142,4],[165,3,165,4],[171,3,171,4],[145,3,145,4],[146,3,146,4],[147,3,147,4],[151,3,151,4],[152,3,152,4],[169,3,169,4],[170,3,170,4],[153,3,153,4]]}
[null,"NARATIVNE INFORMACIJE O UPRAVLJANJU KOMUNALNIM OTPADOM  "]
[null,{"$f":"'2.PRIKUPLJEN OTPAD'!B2:F2","v":"Primer opštine XXX"}]
[1,"Nivo prikupljanja informacija",null,"DA","NE"]
[null,null,"opština"]
[null,null,"grad"]
[null,null,"okrug, region"]
[]
[2,"Tip sakupljanja",null,"DA","NE"]
[null,null,"Tradicionalni"]
[null,null,"Odvojeno sakupljanje frakcija otpada"]
[null,null,"Odvojeno sakupljanje kabastog otpada"]
[]
[3,"Aktivnosti za ponovno iskorišćenje otpada",null,"DA","NE"]
[null,null,"organizovane"]
[null,null,"neorganizovane"]
[]
[4,"Lokacija organizovane separacije",null,"DA","NE"]
[null,null,"Dom"]
[null,null,"Ulica"]
[null,null,"Deponija"]
[null,null,"Drugo"]
[]
[5,"Naziv i adrese operatera koji sakupljaju i odvoze komunalni otpad"]
[]
[6,"Ime odgovorne osobe"]
[]
[7,"Datum poslednjeg unosa"]
[]
[]
[8,"OBIM SAKUPLJANJA - Lokalno komunalno preduzeće ili operater koji sakuplja i odvozi komunalni otpad ","Oprema za sakupljanje i transport otpada na odlagališta","TIP","Kapacitet u m³/tonama",null,"BROJ"]
[null,null,"Rotopress kamioni "]
[null,null,"Kompaktor kamioni"]
[null,null,"Otvoreni kamioni"]
[null,null,"Traktori"]
[null,null,"Drugo"]
[null,null,"Reciklažni kontejneri"]
[null,null,"Kontejneri 5 t"]
[null,null,"Drugo"]
[null,null,"Reciklažni kontejneri",null,null,null,"BROJ","m³"]
[null,null,"Kontejner korpa 3,5m³",null,null,null,null,{"$f":"G40*E40","v":0}]
[null,null,"Kontejner korpa 5 m³",null,null,null,null,{"$f":"G41*E41","v":0}]
[null,null,"Kontejner korpa 7 m³",null,null,null,null,0]
[null,null,"Kontejner sa kukom 2,5m³",null,null,null,null,0]
[null,null,"Kontejner sa kukom 5 m³",null,null,null,null,0]
[null,null,"Kontejner sa kukom 10 m³",null,null,null,null,0]
[null,null,"Kontejner sa kukom 25 m³",null,null,null,null,0]
[null,null,"Kontejner sa kukom 35 m³",null,null,null,null,0]
[null,null,"Kontejneri 1.100 l",null,null,null,null,0]
[null,null,"Kontejneri 660 l",null,null,null,null,0]
[null,null,"Kontejneri 770 l",null,null,null,null,0]
[null,null,"Kante 120 l",null,null,null,null,0]
[null,null,"Kante 240 l",null,null,null,null,0]
[null,null,"Kese",null,null,null,null,0]
[null,null,"Drugo",null,null,null,null,0]
[null,null,"Ukupni kapaciteti opreme u m3",null,null,null,{"$f":"SUM(G40:G54)","v":0},{"$f":"SUM(H40:H54)","v":0}]
[]
[]
[9,"Lokacija deponije– opština i naziv lokacije, geo koordinate"]
[null,"Godina početka odlaganja otpada"]
[]
[10,"Opštine koje isporučuju otpad na deponiju"]
[]
[11,"Naziv i adresa operatera deponije"]
[]
[12,"Deponija - odlagalište- Informacije",null,"DA","NE"]
[null,null,"u skladu sa zahtevima EU"]
[null,null,"tradicionalno odlagalište"]
[null,"Deponija - odlagalište-Vlasništvo","javno"]
[null,null,"privatno"]
[null,null," mešovito"]
[null,"Deponija - odlagalište- Regulatorni status","dozvoljena "]
[null,null,"nedozvoljena"]
[null,null,"izuzeta"]
[null,null,"predložena"]
[null,null,"nelegalna"]
[null,"Deponija - odlagalište– Operativni status","planirana"]
[null,null,"u izgradnji"]
[null,null,"aktivna"]
[null,null,"neaktivna"]
[null,null,"rehabilitacija u toku"]
[null,null,"planirana za zatvaranje"]
[null,null,"zatvorena"]
[null,null,"čisto zatvorena"]
[null,null,"biće utvrđeno"]
[null,"Deponija - odlagalište- Vrsta operatera  ","savezni"]
[null,null,"državni"]
[null,null,"regionalni"]
[null,null,"gradski"]
[null,null,"opštinski"]
[null,null,"privatni"]
[null,null,"okružni"]
[null,"Infrastruktura na deponiji","Prilazni putevi"]
[null,null,"Interni putevi"]
[null,null,"Voda"]
[null,null,"Kanalizacija"]
[null,null,"Struja"]
[null,null,"Sakupljanje gasa"]
[null,null,"Kolska vaga"]
[null,null,"Oprema za pranje vozila"]
[null,"Mehanizacija na lokaciji za odlaganje","Buldožeri"]
[null,null,"Kompaktori"]
[null,null,"Drugo- navedite"]
[null,"Oprema za zaštitu životne sredine na deponiji","Odvodnjavanje"]
[null,null,"Kanali za površinske vode"]
[null,null,"Sakupljanje procedne vode"]
[null,null,"Sistem za prečišćavanje vode"]
[null,null,"Prekrivanje i kompaktiranje"]
[null,null,"Dezinfekcija i deratizacija"]
[null,null,"Drugo "]
[null,"Vrsta otpada koji se odlaže i tehnologije za tretman otpada na deponiji/odlagalištima","Dozvoljeno odlaganje za vrste otpada bez tretmana"]
[null,null,"Metal"]
[null,null,"Ambalažni otpad"]
[null,null,"Poljoprivredni otpad"]
[null,null,"Građevinski otpad"]
[null,null,"Elektronski otpad"]
[null,null,"Opasan otpad iz domaćinstava"]
[null,null,"Medicinski otpad"]
[null,null,"Životinjski otpad"]
[null,null,"Pepeo i mulj"]
[null,null,"Gume"]
[null,null,"Prekrivanje otpada intertnim materijalom"]
[null,null,"Separacija otpada na lokaciji"]
[null,null,"Ponovno iskorišćenje otpada/postrojenje za preradu"]
[null,null,"Postrojenje za reciklažu"]
[null,null,"Postrojenje za kompostiranje"]
[null,null,"Gasifikacija"]
[null,null,"Spaljivanje"]
[null,null,"Kombinovani tretman"]
[null,null,"Drugo- navedite"]
[]
[null,"Geometrija deponije","Dužina u metrima"]
[null,null,"Širina u metrima"]
[null,null,"Površina u m2"]
[null,null,"Zapremina u m3"]
[null,null,"Ukupan kapacitet deponije u m3"]
[null,null,"Kapacitet deponije iskorišćen do 2016. godine u m3"]
[]
[null,"Udaljenost lokacije deponije u metrima od","Naseljenih mesta"]
[null,null,"Potoka, reka, jezera"]
[null,null,"Izvorišta za vodosnabdevanje"]
[null,null,"Doma zdravlja ili bolnice"]
[null,null,"Prehrambene industrije"]
[null,null,"Podzemne infrastrukture"]
[null,null,"Gasovoda ili naftovoda"]
[null,null,"Autobuske ili železničke stanice"]
[null,null,"Aerodroma"]
[null,null,"Skladišta"]
[null,null,"Zaštićenih oblasti"]
[]
[]
[null,"Operativno finansiranje za sakupljanje i transport"]
[null,null,"Naknade za korisnike – tarife (navesti: za domaćinstva po članu, po domaćinstvu, kg/tona ili m2 u RSD)"]
[null,null,"Naknade za korisnike – tarife (navesti: za privredu i industriju,  kg/t, m2 ili drugo u RSD)"]
[null,null,"Odvojeno za transport i sakupljanje po m3 ili kg/t u RSD"]
[null,null,"Odvojeno za odlaganje na deponiju po m3 ili kg/t u RSD"]
[null,null,"Objedinjena naknada za sakupljanje i odlaganje po m3 ili kg/t u RSD"]
[]
[13,"Puna pokrivenost troškova za sakupljanje i transport na deponiju/ odlagalište",null,"DA","NE"]
[null,null,"Aktuelna tarifa pokriva  troškove poslovanja"]
[null,null,"Aktuelna tarifa pokriva  troškove poslovanja uključujući Amortizaciju"]
[null,null,"Aktuelna tarifa pokriva pune troškove uključujući investicije/vraćanje zajma"]
[null,"Naknada za istovar i drugi troškovi za odlaganje otpada na kontrolisanim deponijama","Aktuelna tarifa pokriva  troškove poslovanja"]
[null,null,"Aktuelna tarifa pokriva  troškove poslovanja uključujući Amortizaciju"]
[null,null,"Aktuelna tarifa pokriva pune troškove uključujući investicije/vraćanje zajma "]
[]
[14,"Finansiranje investicija","EKO Fond"]
[null,"Lokalni plan za finansiranje nove kontrolisane deponije ili upravljanje otpadom, apsolutni iznosi u RSD ili u % ukupne vrednosti investicije","Međunarodna donacija"]
[null,null,"Nacionalne subvencije"]
[null,null,"Budžet opštine"]
[null,null,"Direktna zaduženja"]
[null,null,"Ulaganja ili učešće privatnog sektora"]
[null,null,"Ukupno",{"$f":"SUM(D166:E171)","v":0}]
[]
[]
[null,"POČETNA"]